Cogmind - Beta 12 @@@ ROGUE MODE // 2023.07.31 @ 22:38:18 Player: dandone Result: Destroyed by L-31 Rogue with Katana Performance ------------- Evolutions (2) 1000 Regions Visited (4) 800 Robots Destroyed (65) 325 Value Destroyed (2014) 2014 Prototype IDs (2) 40 Alien Tech Used (0) 0 Bonus (166) 166 TOTAL SCORE: 4345 Bonus ------- High Alert Combat Kills 166 Cogmind --------- Core Integrity 0/550 Matter 13/300 Energy 280/280 System Corruption 10% Temperature Cool (0) Movement Core (500) Ox9 Location -8/Materials Parts ------- > --- POWER (2) -------- Cooled Ion Engine > --- PROPULSION (4) --- (None) > --- UTILITY (3) ------ Large Storage Unit Improved Targeting Computer > --- WEAPON (2) ------- (None) > --- INVENTORY (15) --- Cooled Ion Engine Titanium Leg Improved Medium Laser Heavy Assault Rifle Peak State ------------ > --- POWER ------------ Cooled Ion Engine Nuclear Core > --- PROPULSION ------- Wheel Armored Wheel Armored Wheel Armored Wheel > --- UTILITY ---------- Improved Heat Sink Large Storage Unit Improved Targeting Computer > --- WEAPON ----------- Heavy Assault Cannon > --- INVENTORY -------- Light Ion Engine Cooled Ion Engine Cooled Ion Engine Aluminum Leg Aluminum Leg Wheel Heat Sink Improved Medium Laser Improved Medium Laser Heavy Assault Rifle Rocket Launcher Axe [Rating: 27] Favorites ----------- Power Ion Engine Engine Ion Engine Power Core Nuclear Core Propulsion Armored Wheel Treads Light Treads Leg Aluminum Leg Wheel Armored Wheel Utility Large Storage Unit Device Cooling System Storage Large Storage Unit Processor Improved Targeting Computer Hackware System Shield Protection Light Armor Plating Weapon Medium Laser Energy Gun Medium Laser Ballistic Gun Light Assault Rifle Ballistic Cannon Heavy Assault Cannon Launcher Rocket Launcher Slashing Weapon Axe Build | -11 -10 -10 -9 -8 ------- Run | Jun Mat Min Mat Mat Slots Evolved 4 | . . . 2 2 Power 1 | . . . . 1 Propulsion 2 | . . . 1 1 Utility 1 | . . . 1 . Weapon . | . . . . . Parts Attached 46 | . 11 1 13 21 Power 7 | . 1 . 2 4 Engine 6 | . 1 . 2 3 Core 1 | . . . . 1 Reactor . | . . . . . Propulsion 15 | . 2 . 6 7 Treads 2 | . 2 . . . Leg 7 | . . . 3 4 Wheel 6 | . . . 3 3 Hover . | . . . . . Flight . | . . . . . Utility 9 | . 5 . 1 3 Device 4 | . 2 . . 2 Storage 1 | . 1 . . . Processor 2 | . 2 . . . Hackware 1 | . . . . 1 Protection 1 | . . . 1 . Artifact . | . . . . . Weapon 15 | . 3 1 4 7 Energy Gun 4 | . 2 . 1 1 Energy Cannon . | . . . . . Ballistic Gun 2 | . 1 . 1 . Ballistic Cannon 2 | . . . . 2 Launcher 5 | . . 1 2 2 Special Weapon . | . . . . . Impact Weapon . | . . . . . Slashing Weapon 2 | . . . . 2 Piercing Weapon . | . . . . . Special Melee Weapon . | . . . . . Unidentified Prototypes 2 | . . . 2 . Parts Lost 20 | . . . 3 17 Power 2 | . . . . 2 Propulsion 11 | . . . 3 8 Utility 3 | . . . . 3 Weapon 4 | . . . . 4 Highest Loss Streak 7 | . . . 1 7 To Critical Strikes . | . . . . . Average Slot Usage (%) 90 | . 98 100 89 79 Engine 11 | . 14 14 11 6 Core 1 | . . . . 5 Treads 12 | . 25 28 4 . Leg 3 | . 2 . 6 3 Wheel 11 | . . . 16 23 Device 5 | . 9 . . 6 Storage 11 | . 14 14 11 9 Processor 7 | . 3 14 11 9 Protection 2 | . . . 6 2 Energy Gun 13 | . 26 1 4 4 Ballistic Gun 2 | . 1 14 6 . Ballistic Cannon 1 | . . . . 4 Launcher 4 | . . 12 11 3 Naked Turns . | . . . . . Heaviest Build 50 | 11 31 30 38 50 Greatest Support 46 | 20 40 40 40 46 Greatest Overweight (x) 9 | . . . 9 9 Average Overweight (x) . | . . . . . Largest Inventory Capacity 15 | 8 15 15 15 15 Average Capacity 14 | 8 14 15 15 15 Most Carried 15 | 6 11 12 14 15 Average Carried 9 | 6 8 11 10 10 Final Capacity 15 | 8 15 15 15 15 Final Carried 12 | 6 11 12 10 4 Class Distribution -------------------- 100% | Mutant Dominant Class ---------------- Mutant | -10/Materials Mutant | -10/Mines Mutant | -9/Materials Mutant | -8/Materials Resources | -11 -10 -10 -9 -8 ----------- Run | Jun Mat Min Mat Mat Matter Collected 1048 | 186 131 . 194 537 Remotely . | . . . . . Salvage Created 1792 | . 397 . 390 1005 Parts 116 | . 27 . 27 62 Haulers Intercepted 2 | . . . 1 1 Recyclers Shooed 1 | . 1 . . . Parts Field Recycled . | . . . . . Retrieved Matter . | . . . . . Parts Self-Destructed . | . . . . . Prevented . | . . . . . Kills | -11 -10 -10 -9 -8 ------- Run | Jun Mat Min Mat Mat Combat Hostiles Destroyed 50 | . 11 . 15 24 Guns 18 | . 11 . 3 4 Cannons 19 | . . . . 19 AOE 13 | . . . 12 1 Classes Destroyed 10 | . 3 . 2 5 Worker 3 | . . . . 3 Builder 3 | . . . . 3 Hauler 2 | . . . 1 1 Recycler 1 | . . . . 1 Watcher 6 | . 3 . 2 1 Swarmer 11 | . 5 . 6 . Grunt 31 | . 6 . 8 17 Duelist 2 | . . . . 2 Sentry 5 | . . . 1 4 Hunter 1 | . . . . 1 Best Kill Streak 9 | . 3 . 4 9 Combat Bots Only 7 | . 3 . 4 7 Max Kills in Single Turn 3 | . 1 . 3 1 Gunslinging . | . . . . . Exploded 3 | . . . 3 1 Melee . | . . . . . Uniques/NPCs Destroyed . | . . . . . Combat | -11 -10 -10 -9 -8 -------- Run | Jun Mat Min Mat Mat Damage Taken 3426 | . 378 . 614 2434 Core 737 | . 77 . 109 551 Absorbed by Shields . | . . . . . Regen/Repaired (Parts) 131 | . . . . 131 Core Remaining (%) 80 | 100 . 69 72 . Volleys Fired 202 | . 43 . 58 101 Largest 2 | . 2 . 2 2 Hottest 100 | . 100 . 56 89 Shots Fired 257 | . 85 . 64 108 Gun 174 | . 85 . 56 33 Cannon 67 | . . . . 67 Launcher 16 | . . . 8 8 Special . | . . . . . Kinetic 119 | . . . 52 67 Thermal 110 | . 73 . 4 33 Explosive 16 | . . . 8 8 Electromagnetic 12 | . 12 . . . Robot Hit Streak 10 | . 6 . 8 10 Robot Miss Streak 7 | . 7 . 3 4 Penetration Max 1 | . . . . 1 Secondary Targets . | . . . . . Shots Hit Robots 152 | . 46 . 39 67 Core Hits 89 | . 22 . 28 39 Critical Kills . | . . . . . Critical Parts Destroyed 1 | . . . 1 . Critical Strikes 12 | . 3 . 1 8 Burn 4 | . 3 . . 1 Destroy 1 | . . . 1 . Blast 7 | . . . . 7 Melee Attacks 1 | . . . . 1 Impact . | . . . . . Slashing 1 | . . . . 1 Piercing . | . . . . . Sneak Attacks . | . . . . . Combat Hostiles . | . . . . . Follow-up Attacks . | . . . . . Damage Inflicted 5044 | . 645 2 943 3454 Guns 1344 | . 624 . 312 408 Cannons 2460 | . . . . 2460 Explosions 1179 | . 21 . 596 562 Melee 24 | . . . . 24 Ramming 37 | . . 2 35 . Kinetic 2738 | . . . 278 2460 Thermal 974 | . 532 . 34 408 Explosive 1158 | . . . 596 562 Electromagnetic 113 | . 113 . . . Impact . | . . . . . Slashing 24 | . . . . 24 Piercing . | . . . . . Highest Corruption 10 | . 1 1 . 10 Average Corruption 3 | . 1 1 . 7 Corruption Purged . | . . . . . Corruption Blocked . | . . . . . Effects 19 | . 3 2 . 14 Message Errors 4 | . 1 . . 3 Matter Fused 3 | . 1 . . 2 Heat Flow Errors 1 | . . 1 . . Energy Discharges 3 | . . 1 . 2 Parts Rejected 1 | . . . . 1 Data Loss (minor) 5 | . 1 . . 4 Alerts 1 | . . . . 1 Misdirections 1 | . . . . 1 Overload Shots . | . . . . . Overflow Damage 271 | . . . 50 221 Projectiles 172 | . . . . 172 Explosions 99 | . . . 50 49 Melee . | . . . . . Knockbacks 14 | . . . . 14 Impact . | . . . . . Kinetic 14 | . . . . 14 Secondary . | . . . . . Self-Inflicted Damage 197 | . . . 81 116 Shots 4 | . . . 2 2 Rammed 3 | . . 1 2 . Targets Rammed 3 | . . 1 2 . Kicked . | . . . . . Crushed . | . . . . . Highest Temperature 327 | . 280 161 24 327 Average Temperature 89 | . 110 85 7 94 Received Heat Transfer 1062 | . 90 . 207 765 Effects 2 | . . . . 2 Shutdowns 1 | . . . . 1 Energy Bleed 1 | . . . . 1 Siege Activations . | . . . . . Robots Corrupted . | . . . . . Combat Hostiles . | . . . . . Parts Fried . | . . . . . Impact Corruptions . | . . . . . Robots Melted . | . . . . . Combat Hostiles . | . . . . . Parts Melted 4 | . 3 . . 1 Heat Transferred 2825 | . 1789 . 74 962 Parts Sabotaged . | . . . . . Parts Stolen . | . . . . . Parts Stripped . | . . . . . Power Chain Reactions 1 | . 1 . . . Missiles Intercepted . | . . . . . Alert | -11 -10 -10 -9 -8 ------- Run | Jun Mat Min Mat Mat Peak Influence 616 | . 121 16 388 616 Initial 64 | . . 16 5 64 Average 191 | . 32 16 227 403 Maximum Alert Level 2 | . . . 1 2 Low Security (%) 59 | 100 100 100 34 20 Level 1 23 | . . . 65 24 Level 2 16 | . . . . 55 Level 3 . | . . . . . Level 4 . | . . . . . Level 5 . | . . . . . High Security . | . . . . . Max Security . | . . . . . Squads Dispatched 10 | . 3 . 1 6 Investigation 3 | . 2 . . 1 Extermination . | . . . . . Reinforcement 6 | . 1 . 1 4 Assault 1 | . . . . 1 Garrison . | . . . . . Intercept . | . . . . . Searches Triggered . | . . . . . Construction Impeded . | . . . . . Haulers Reinforced . | . . . . . Active Scanning Responses . | . . . . . Cargo Convoy Interrupts . | . . . . . Stealth | -11 -10 -10 -9 -8 --------- Run | Jun Mat Min Mat Mat Distress Signals 3 | . . . . 3 Communications Jammed . | . . . . . Distress Signals . | . . . . . Times Spotted 83 | . 20 . 24 39 Peak Tracking Total 6 | . 3 . 6 5 Tactical Retreats 3 | . 1 . 1 1 Traps | -11 -10 -10 -9 -8 ------- Run | Jun Mat Min Mat Mat Traps Triggered 4 | . 3 . . 1 Indirectly . | . . . . . Trap Hack Attempts . | . . . . . Triggered . | . . . . . Disarmed . | . . . . . Reprogrammed . | . . . . . Reused . | . . . . . Traps Extracted . | . . . . . Installed . | . . . . . Triggered . | . . . . . Machines | -11 -10 -10 -9 -8 ---------- Run | Jun Mat Min Mat Mat Machines Disabled 8 | . . . 1 7 Max in Single Turn 2 | . . . 1 2 Machines Repaired . | . . . . . Machines Sabotaged . | . . . . . Overloaded Fab Kills . | . . . . . Hacking | -11 -10 -10 -9 -8 --------- Run | Jun Mat Min Mat Mat Machines Accessed 4 | . 3 . . 1 Terminals 2 | . 2 . . . Fabricators . | . . . . . Repair Stations 2 | . 1 . . 1 Recycling Units . | . . . . . Scanalyzers . | . . . . . Garrison Access . | . . . . . Total Hacks 12 | . 7 . . 5 Successful 9 | . 5 . . 4 Failed 3 | . 2 . . 1 Catastrophic . | . . . . . Database Lockouts . | . . . . . Manual . | . . . . . Terminals 5 | . 5 . . . Fabricators . | . . . . . Repair Stations 7 | . 2 . . 5 Recycling Units . | . . . . . Scanalyzers . | . . . . . Garrison Access . | . . . . . Terminal Hacks 4 | . 4 . . . Record 2 | . 2 . . . Alert Level 1 | . 1 . . . Locate Traps 1 | . 1 . . . Fabricator Hacks . | . . . . . Repair Station Hacks 5 | . 1 . . 4 Scan Component 3 | . 1 . . 2 Repair 1 | . . . . 1 Refit 1 | . . . . 1 Recycling Unit Hacks . | . . . . . Scanalyzer . | . . . . . Garrison Access Hacks . | . . . . . Unauthorized Hacks . | . . . . . Terminals . | . . . . . Fabricators . | . . . . . Repair Stations . | . . . . . Recycling Units . | . . . . . Scanalyzers . | . . . . . Garrison Access . | . . . . . Data Cores Recovered . | . . . . . Used . | . . . . . Hacking Detections 2 | . 1 . . 1 Full Trace Events 2 | . 1 . . 1 Feedback Events 1 | . . . . 1 Corruption 1 | . . . . 1 Feedback Blocked . | . . . . . Robot Schematics Acquired . | . . . . . Robots Built . | . . . . . Authchips . | . . . . . Time . | . . . . . Total Robot Build Rating . | . . . . . Part Schematics Acquired . | . . . . . Parts Built . | . . . . . Authchips . | . . . . . Time . | . . . . . Total Part Build Rating . | . . . . . Parts Repaired 1 | . . . . 1 Time 19 | . . . . 19 Parts Recycled . | . . . . . Recycled Matter . | . . . . . Retrieved Matter . | . . . . . Retrieved Components . | . . . . . Parts Scanalyzed . | . . . . . Part Schematics Acquired . | . . . . . Parts Damaged . | . . . . . Bothacking | -11 -10 -10 -9 -8 ------------ Run | Jun Mat Min Mat Mat Used RIF Installer . | . . . . . Robots Hacked . | . . . . . Non-combat . | . . . . . Combat . | . . . . . Robot Hacks Applied . | . . . . . Relay Couplers Released . | . . . . . Fabnet Peak Effective % . | . . . . . Robots Rewired . | . . . . . Allies Hacked . | . . . . . Hacks Repelled . | . . . . . Allies | -11 -10 -10 -9 -8 -------- Run | Jun Mat Min Mat Mat Total Allies . | . . . . . Largest Group . | . . . . . Highest-Rated Group . | . . . . . Highest-Rated Ally . | . . . . . Total Orders . | . . . . . Ally Attacks . | . . . . . Total Damage . | . . . . . Kills . | . . . . . Allies Corrupted . | . . . . . Allies Melted . | . . . . . Intel | -11 -10 -10 -9 -8 ------- Run | Jun Mat Min Mat Mat Robot Analysis Total . | . . . . . Derelict Logs Recovered . | . . . . . Drone Launches . | . . . . . Drone Recoveries . | . . . . . Exploration | -11 -10 -10 -9 -8 ------------- Run | Jun Mat Min Mat Mat Turns Passed 3242 | 4 1327 131 814 966 Spaces Moved 1805 | 4 752 80 510 459 Core 7 | . . . 1 6 Treads 839 | . 676 80 83 . Legs 256 | 4 76 . 95 81 Wheels 703 | . . . 331 372 Hover . | . . . . . Flight . | . . . . . Fastest Speed 87 | 120 120 160 90 87 Average Speed 136 | 120 155 160 125 113 Slowest Speed 500 | 120 160 160 500 500 Overloaded Moves . | . . . . . Propulsion Burnouts . | . . . . . Robots Hopped . | . . . . . Cave-ins Triggered 1 | . . . . 1 Exploration Rate (%) 34 | 3 81 14 39 33 Regions Visited 4 Branch Regions 1 Pre-discovered Areas . | . . . . . Known Exits Taken . | . . . . . Unknown Exits Taken 4 | 1 1 1 1 . Scrap Searched . | . . . . . Spaces Dug 3 | . . . . 3 Terrain Destroyed 238 | . 5 . 72 161 Melee . | . . . . . Projectile 28 | . . . . 28 AOE 210 | . 5 . 72 133 Terrain Rammed . | . . . . . Walls Destroyed . | . . . . . Machines Disabled . | . . . . . Actions | -11 -10 -10 -9 -8 --------- Run | Jun Mat Min Mat Mat Total 2295 | 3 818 82 630 762 Wait 188 | . 3 . 23 162 Move 1801 | 3 751 79 509 459 Hop . | . . . . . Pick Up 33 | . 8 1 14 10 Fast Attach . | . . . . . Attach 26 | . 2 . 5 19 Detach 5 | . 1 . . 4 Swap 20 | . 9 1 8 2 Drop 16 | . 1 . 11 4 Fire 202 | . 43 . 58 101 Melee 1 | . . . . 1 Ram 2 | . . . 2 . Kick . | . . . . . Crush 1 | . . 1 . . Escape Stasis . | . . . . . Rewire . | . . . . . Trap . | . . . . . Miscellaneous . | . . . . . Route ------- -11/Junkyard -10/Materials (discovered 2 exits: [*Mat] / [*Min]) -10/Mines (discovered 2 exits: [*Mat] / [*Exi]) -9/Materials -8/Materials History --------- Turn | Location | Event 1 | -11/Junkyard | Discovered new exit (range 3) 5 | -11/Junkyard | Entered Materials 287 | -10/Materials | Discovered new exit (range 4) 302 | -10/Materials | Build established: Mutant 1033 | -10/Materials | Discovered new exit (range 12) 1332 | -10/Materials | Entered Mines 1339 | -10/Mines | Received a Rocket Launcher from a helpful Derelict 1356 | -10/Mines | Deemed a non-threat by the Exiles lab entrance 1357 | -10/Mines | Discovered new exit (range 5) 1381 | -10/Mines | Discovered new exit (range 9) 1410 | -10/Mines | Assembled infested the area 1415 | -10/Mines | Assisted by a Guerilla fighting off Assembled 1463 | -10/Mines | Entered Materials 1463 | -9/Materials | Evolved 2 slots: Propulsion x1, Utility x1 1829 | -9/Materials | Discovered new exit (range 16) 2277 | -9/Materials | Entered another Materials area 2277 | -8/Materials | Evolved 2 slots: Power x1, Propulsion x1 2524 | -8/Materials | Destroyed 7 combat bots 2778 | -8/Materials | Repaired Hvy. Assault Cannon 2913 | -8/Materials | Crushed by falling debris 2913 | -8/Materials | System corruption reached 10% 2972 | -8/Materials | Lost 7 parts (1p4n1u1w) 3077 | -8/Materials | First assault squad dispatched 3221 | -8/Materials | Core integrity fell below 50% 3236 | -8/Materials | Core integrity fell below 20% 3243 | -8/Materials | Destroyed by L-31 Rogue with Katana Last Messages --------------- Aluminum Leg destroyed. K-01 Serf collects debris. K-01 Serf cleans the Recycling Unit. Titanium Leg severed. K-01 Serf cleans the Recycling Unit. L-31 Rogue destroyed. K-01 Serf collects debris. Heat Sink destroyed. Imp. Medium Laser destroyed. K-01 Serf collects debris. Axe destroyed. K-01 Serf collects debris. Lgt. Ion Engine destroyed. Recycling Unit disabled. Imp. Signal Interpreter tumbles out of recycling unit. Beam Rifle tumbles out of recycling unit. K-01 Serf destroyed. K-01 Serf collects debris. Rocket Launcher destroyed. K-01 Serf collects debris. Map ----- +----------------------------------------------------+ | ??????????????# *#???????????????????????????????? | | ??????????????#=%#???????????????????????????????? | | ??????????????#==#???????????????????????????????? | | ??????????????%%%#???###?????????????????????????? | | ??????????????#[=#??? ????????????????????????? | | ??????????????#%%#?? ] ????????????????????????? | | ??????????????#%!#?? ?????????????????????????? | | ??????# ??????#=%#? ?????????????????????????? | | ??????# ????# =#?""" "?????????????????????????? | | ??????? """ ??#!!# """ ""????????????????????????? | | ??????# """ #=*# """ """ #?????????????????????? | | ??????# """ + [" #?????????????????????? | | ??????# # #######+##??????????????????????? | | ??????######### #??????????????????????? | | ????????## != / #??????????????????????? | | ????????#" %%! ##?????????????????????# | | ????????#T [[" " "" "###########???????????# | | ????????#" " " Y T# #???????????# | | ????????## ! """ k [ "# """ !/ #???????????# | | ??????? ! ## "R / #???????????# | | ?????? ## " " #???????????# | | ?????#########+## ## ![ %% #???????????# | | ????????????????## ^ %= #######+################ | | ????????????????## ^ g%k= | | ??????????? " "# ^ b%l [ | | ????????????""" ## ^ !@###+####+########+####+# | | ?????????????""?+ ####### * * ???? ??# | | ????????????? ??#####????# "" ?? ""??# | | ?????????????????????????## """ !!! T" # """?# | | ??????????????????????????# """ !!! "" #! """?#! | | ??????????????????????????# """ !!! # # | | ??????????????????????????# # # | | ???????????????????????????###################?### | | | | | | | | | | | | | | | | | | | | | | | | | | | | | | | | | | | +----------------------------------------------------+ Best States ------------- Heat Dissipation 47 Energy Generation 23 Energy Capacity 420 Matter Stores 300 Matter Capacity 300 Sight Range 18 Terrain Scan Density 10 Armor Coverage 150 Evasion (%) 55 Targeting Accuracy 6 Recoil Reduction 2 Defensive Hacking 10 Item Schematics ----------------- None Robot Schematics ------------------ None Fabricated ------------ Nothing Alien Tech Used ----------------- None Achievements -------------- Please Form A Line Remodeling System Compromised Unlikely Earthworm Challenges ------------ None Game ------ Seed SpacefoldRecyclingCannon Manual? 0 Play Time 00:50:15 Cumulative 5.1 hours Start 2023.05.27 @ 14:36:46 End 2023.07.31 @ 22:38:18 Sessions 3 Manual Loads 0 Difficulty Rogue Special Mode None Game No. 7 Rogue 7 Adventurer 0 Explorer 0 Win Type - Total 0 Types 0/0/0/0/0/0/0/0/0 Lore% 5 Gallery% 10 Achievement% 11 Wizard Run 0 Options --------- ASCII 0 Keyboard 0 Movement Mouse Keybinds 0 Fullscreen 2 Font 18/TerminusBold Map View 76x50 Tactical HUD 0 Map Filters NONE Filters NONE Steam 1 RUN: 4e95e4c9-6842-4c0f-b7df-8a01890e0792